fUSD/lending_fUSD_20241106
["ID","MTS","AMOUNT","RATE_DAILY","PERIOD"]
[341375226,1730855605423,-800.0,0.00026986,120]
[341375228,1730855787101,155.84,0.00015342,2]
[341375230,1730856151750,-179.68,0.00026986,120]
[341375231,1730856175173,-139.5374655,0.0003,120]
[341375232,1730856178519,-139.5374655,0.0003,120]
[341375233,1730856178542,-720.925069,0.0003,120]
[341375234,1730856188323,-1000.0,0.00035,120]
[341375235,1730856188374,-500.0,0.00035,120]
[341375236,1730856191684,-500.0,0.00035,120]
[341375237,1730856308891,48519.48824031,0.00016,2]
[341375238,1730856308924,178000.0,0.00016,2]
[341375239,1730856308950,4602.0,0.00016,2]
[341375240,1730856308976,19000.0,0.00016,2]
[341375241,1730856309004,54000.0,0.00016,2]
[341375242,1730856309034,1153758.6727524,0.00016,2]
[341375253,1730856371581,-7975.51997976,0.0001892,2]
[341375254,1730856371606,-226.41735,0.00024875,2]
[341375255,1730856371631,-350.0,0.00025,2]
[341375256,1730856371654,-11448.06267024,0.00025,2]
[341375257,1730856394579,-5000.0,0.00025,2]
[341375258,1730856403940,-2000.0,0.00025,2]
[341375290,1730856484179,48772.22096513,0.00015,2]
[341375291,1730856500612,150.0,0.00035,120]
[341375334,1730856632216,-1241.48293189,0.000225,2]
[341375336,1730856632225,-451.00003241,0.00023922,2]
[341375337,1730856632234,-17043.48703776,0.00025,2]
[341375339,1730856632246,-24208.53875786,0.00025,2]
[341375340,1730856632255,-545.60861844,0.00025,2]
[341375341,1730856632264,-421.32065725,0.000264,2]
[341375342,1730856632276,-2151.66492607,0.000264,2]
[341375343,1730856632285,-282.472,0.00029,2]
[341375344,1730856632294,-625.64554777,0.000291,2]
[341375345,1730856632303,-9178.16739994,0.000299,2]
[341375346,1730856632312,-8946.80718413,0.0003,2]
[341375347,1730856632322,-1728.74438235,0.0003,2]
[341375348,1730856632331,-1014.4398523,0.0003,2]
[341375349,1730856632340,-441.74652266,0.0003,2]
[341375350,1730856632349,-155.84,0.00030548,2]
[341375351,1730856632359,-1731.80415119,0.000325,2]
[341375352,1730856632370,-5575.18532901,0.000325,2]
[341375353,1730856632389,-860.6,0.000325,2]
[341375354,1730856632473,-723.66,0.000325,2]
[341375359,1730856633128,161.0,0.000199,2]
[341375368,1730856638352,-1184.44967215,0.000325,2]
[341375369,1730856638509,-490.62,0.000325,2]
[341375370,1730856638520,-788.7084848,0.000325,2]
[341375371,1730856638831,-548.96970503,0.000325,2]
[341375372,1730856638842,-643.434,0.000325,2]
[341375462,1730856640309,-1419.98,0.000325,2]
[341375475,1730856640472,-1835.73511576,0.000325,2]
[341375477,1730856640481,-4590.84857262,0.000328,2]
[341375479,1730856640491,-4043.17063425,0.00033,2]
[341375481,1730856640505,-13809.9064193,0.00033,2]
[341375483,1730856640514,-500.0,0.00035,2]
[341375485,1730856640523,-14660.35629918,0.00035,2]
[341375487,1730856640540,-13645.9519921,0.00035,2]
[341375497,1730856640617,-68386.8726234,0.00035,2]
[341375499,1730856640626,-1792.16307731,0.00035,10]
[341375501,1730856640635,-505.53246438,0.00035064,15]
[341375503,1730856640645,-250.0,0.00035146,2]
[341375505,1730856640654,-136.43183503,0.00035164,2]
[341375507,1730856640665,-17.96816497,0.00035164,2]
[341375509,1730856640674,-250.0,0.0003525,120]
[341375511,1730856640683,-509.94,0.00035461,2]
[341375513,1730856640693,-178.66,0.0003555,2]
[341375515,1730856640702,-312.67464728,0.00035639,15]
[341375792,1730856643426,-500.0,0.00034999,7]
[341375794,1730856643436,-500.0,0.00034999,7]
[341375796,1730856643445,-500.0,0.00034999,7]
[341375798,1730856643455,-500.0,0.00034999,7]
[341375800,1730856643464,-197.12859075,0.00034999,7]
[341375802,1730856643473,-500.0,0.00034999,7]
[341375804,1730856643483,-500.0,0.00034999,7]
[341375806,1730856643492,-275.11213844,0.00034999,7]
[341375808,1730856643501,-500.0,0.00034999,7]
[341375809,1730856643510,-500.0,0.00034999,7]
[341375811,1730856643519,-500.0,0.00034999,7]
[341375813,1730856643528,-500.0,0.00034999,7]
[341375815,1730856643543,-500.0,0.00034999,7]
[341375817,1730856643552,-500.0,0.00034999,7]
[341375819,1730856643561,-192.85781706,0.00035639,15]
[341375821,1730856643571,-162.5,0.00035777,120]
[341375823,1730856643580,-329.32,0.00035982,2]
[341375825,1730856643589,-505.53246434,0.00036214,15]
[341375827,1730856643599,-160.34,0.00036259,2]
[341375829,1730856643608,-152.66,0.00036321,2]
[341375831,1730856643617,-472.32,0.00036661,2]
[341375833,1730856643627,-505.53246434,0.00036788,15]
[341375835,1730856643637,-200.0,0.00037034,7]
[341375837,1730856643647,-151.86,0.00037048,120]
[341375839,1730856643656,-152.63,0.00037074,2]
[341375841,1730856643666,-170.56,0.00037098,2]
[341375843,1730856643676,-167.1,0.00037297,2]
[341375845,1730856643685,-505.53246434,0.00037363,15]
[341375847,1730856643695,-527.68,0.00037418,2]
[341375849,1730856643706,-3102.34222266,0.00037449,2]
[341375851,1730856643721,-9793.65777734,0.00037449,2]
[341375853,1730856643730,-167.1,0.00037483,2]
[341375855,1730856643739,-372.0,0.000375,7]
[341375857,1730856643751,-167.1,0.0003767,2]
[341375859,1730856643760,-509.94,0.00037725,2]
[341375861,1730856643770,-162.76,0.00037796,2]
[341375863,1730856643779,-168.02,0.00037924,2]
[341375865,1730856643792,-505.53246434,0.00037938,15]
[341375867,1730856643802,-900.0,0.00038,39]
[341375869,1730856643811,-8637.89613314,0.00038,2]
[341375872,1730856643823,-11459.10386686,0.00038,2]
[341375874,1730856643834,-182.544,0.00038346,51]
[341375876,1730856643843,-500.0,0.00038356,14]
[341375878,1730856643853,-635.93,0.00038356,14]
[341375880,1730856643862,-500.0,0.00038356,14]
[341375882,1730856643872,-529.84,0.00038356,14]
[341375883,1730856643881,-4428.54,0.00038356,14]
[341375885,1730856643890,-1545.47,0.00038356,14]
[341375887,1730856643899,-915.81,0.00038356,14]
[341375889,1730856643908,-2230.84,0.00038356,14]
[341375891,1730856643917,-500.0,0.00038356,14]
[341375893,1730856643927,-5790.82,0.00038356,14]
[341375895,1730856643936,-1475.85,0.00038356,14]
[341375897,1730856643945,-2840.55,0.00038356,14]
[341375899,1730856643956,-500.0,0.00038356,14]
[341375901,1730856643965,-500.0,0.00038356,14]
[341375903,1730856643974,-500.0,0.00038356,14]
[341375905,1730856643983,-500.0,0.00038356,14]
[341375907,1730856643993,-711.8,0.00038356,14]
[341375909,1730856644002,-4885.59,0.00038356,14]
[341375911,1730856644012,-823.32,0.00038356,14]
[341375913,1730856644021,-3865.07,0.00038356,14]
[341375915,1730856644031,-3337.25,0.00038356,14]
[341375917,1730856644043,-507.72937034,0.00038356,14]
[341375918,1730856644052,-500.0,0.00038356,14]
[341375920,1730856644062,-689.17,0.00038356,14]
[341375922,1730856644071,-500.0,0.00038356,14]
[341375924,1730856644081,-500.0,0.00038356,14]
[341375926,1730856644089,-2147.47,0.00038356,14]
[341375928,1730856644099,-500.0,0.00038356,14]
[341375930,1730856644108,-500.0,0.00038356,14]
[341375932,1730856644117,-505.71808433,0.00038356,14]
[341375934,1730856644126,-500.0,0.00038356,14]
[341375936,1730856644135,-500.0,0.00038356,14]
[341375938,1730856644144,-500.0,0.00038356,14]
[341375940,1730856644153,-509.52683881,0.00038356,14]
[341375942,1730856644162,-592.31,0.00038356,14]
[341375944,1730856644171,-500.0,0.00038356,14]
[341375946,1730856644180,-1085.72,0.00038356,14]
[341375948,1730856644189,-500.0,0.00038356,14]
[341375949,1730856644198,-500.0,0.00038356,14]
[341375951,1730856644206,-500.0,0.00038356,14]
[341375953,1730856644216,-690.77,0.00038356,14]
[341375955,1730856644226,-22177.25,0.00038356,14]
[341375957,1730856644236,-81990.25,0.00038356,2]
[341375959,1730856644246,-8543.33,0.00038356,2]
[341375961,1730856644256,-162.5,0.00038361,120]
[341375963,1730856644265,-150.01,0.00038431,2]
[341375965,1730856644275,-505.53246434,0.00038513,15]
[341375967,1730856644287,-10000.0,0.0003858,2]
[341375969,1730856644298,-166.88,0.00038716,2]
[341375971,1730856644308,-1000.0,0.000388,14]
[341375973,1730856644317,-1000.0,0.000388,80]
[341375975,1730856644327,-838.48102598,0.00038887,2]
[341375977,1730856644336,-20260.5760556,0.0003898,2]
[341375979,1730856644346,-500.0,0.00038984,15]
[341375981,1730856644355,-500.0,0.00038984,15]
[341375983,1730856644365,-500.0,0.00038984,15]
[341375985,1730856644374,-500.0,0.00038984,15]
[341375987,1730856644385,-176.32079838,0.00038984,15]
[341375996,1730856644501,-500.0,0.00038984,15]
[341375997,1730856644512,-500.0,0.00038984,15]
[341375998,1730856644522,-823.32,0.00038984,14]
[341375999,1730856644535,-3337.25,0.00038984,14]
[341376001,1730856644545,-500.0,0.00038984,14]
[341376003,1730856644554,-500.0,0.00038984,14]
[341376005,1730856644564,-500.0,0.00038984,14]
[341376007,1730856644573,-2147.47,0.00038984,14]
[341376009,1730856644583,-505.60592276,0.00038984,14]
[341376011,1730856644593,-500.0,0.00038984,14]
[341376013,1730856644602,-500.0,0.00038984,14]
[341376015,1730856644611,-500.0,0.00038984,14]
[341376017,1730856644621,-592.31,0.00038984,14]
[341376019,1730856644631,-500.0,0.00038984,14]
[341376021,1730856644640,-1085.72,0.00038984,14]
[341376023,1730856644650,-500.0,0.00038984,14]
[341376025,1730856644659,-582.89170617,0.00038984,14]
[341376027,1730856644669,-690.77,0.00038984,14]
[341376028,1730856644679,-500.0,0.00038984,14]
[341376030,1730856644688,-2789.82,0.00038985,14]
[341376032,1730856644698,-2789.82,0.00038985,14]
[341376034,1730856644708,-2789.82,0.00038985,14]
[341376036,1730856644720,-2789.82,0.00038985,14]
[341376038,1730856644729,-233.84931512,0.00038985,14]
[341376040,1730856644739,-500.0,0.00038985,14]
[341376042,1730856644748,-500.0,0.00038985,14]
[341376044,1730856644759,-500.0,0.00038985,14]
[341376046,1730856644768,-520.22,0.00038985,14]
[341376048,1730856644778,-500.0,0.00038985,14]
[341376050,1730856644793,-500.0,0.00038985,14]
[341376052,1730856644802,-500.0,0.00038985,14]
[341376054,1730856644811,-500.0,0.00038985,14]
[341376056,1730856644821,-500.0,0.00038985,14]
[341376058,1730856644830,-500.0,0.00038985,14]
[341376060,1730856644839,-1176.76,0.00038985,14]
[341376062,1730856644849,-500.0,0.00038985,14]
[341376064,1730856644858,-1176.76,0.00038985,14]
[341376065,1730856644868,-1176.76,0.00038985,14]
[341376067,1730856644877,-1176.76,0.00038985,14]
[341376069,1730856644889,-10715.99,0.00038985,14]
[341376071,1730856644899,-10715.99,0.00038985,14]
[341376073,1730856644909,-10715.99,0.00038985,14]
[341376075,1730856644918,-2066.31597817,0.00038985,14]
[341376173,1730856646210,-249.88,0.00038346,10]
[341376174,1730856646220,-8649.67402183,0.00038985,14]
[341376176,1730856646230,-151.0,0.00038985,14]
[341376178,1730856646240,-151.0,0.00038985,14]
[341376180,1730856646250,-500.0,0.00038985,14]
[341376182,1730856646259,-500.0,0.00038985,14]
[341376183,1730856646269,-500.0,0.00038985,14]
[341376185,1730856646279,-210.13199538,0.00038985,14]
[341376187,1730856646292,-500.0,0.00038985,14]
[341376189,1730856646301,-500.0,0.00038985,14]
[341376191,1730856646311,-500.0,0.00038985,14]
[341376193,1730856646324,-500.0,0.00038985,14]
[341376195,1730856646333,-151.0,0.00038985,7]
[341376197,1730856646344,-151.0,0.00038985,14]
[341376199,1730856646353,-151.0,0.00038985,14]
[341376201,1730856646363,-500.0,0.00038985,14]
[341376203,1730856646372,-500.0,0.00038985,14]
[341376204,1730856646382,-500.0,0.00038985,14]
[341376206,1730856646392,-500.0,0.00038985,14]
[341376208,1730856646401,-500.0,0.00038985,14]
[341376209,1730856646411,-500.0,0.00038985,14]
[341376211,1730856646420,-500.0,0.00038985,14]
[341376212,1730856646430,-500.0,0.00038985,14]
[341376214,1730856646440,-151.0,0.00038985,14]
[341376215,1730856646449,-151.0,0.00038985,14]
[341376217,1730856646459,-2100.25,0.00038985,14]
[341376218,1730856646469,-151.0,0.00038985,14]
[341376220,1730856646478,-2100.25,0.00038985,14]
[341376221,1730856646487,-2100.25,0.00038985,14]
[341376222,1730856646497,-2100.25,0.00038985,14]
[341376223,1730856646506,-2654.68,0.00038985,14]
[341376224,1730856646516,-2654.68,0.00038985,14]
[341376225,1730856646525,-2654.68,0.00038985,14]
[341376226,1730856646537,-2654.68,0.00038985,14]
[341376227,1730856646547,-500.0,0.00038985,14]
[341376228,1730856646556,-500.0,0.00038985,14]
[341376229,1730856646565,-500.0,0.00038985,14]
[341376230,1730856646575,-500.0,0.00038985,14]
[341376231,1730856646585,-151.0,0.00038985,14]
[341376233,1730856646594,-500.0,0.00038985,14]
[341376235,1730856646604,-511.58473887,0.00038985,14]
[341376237,1730856646614,-500.0,0.00038985,14]
[341376238,1730856646624,-500.0,0.00038985,14]
[341376240,1730856646633,-500.0,0.00038985,14]
[341376242,1730856646643,-500.0,0.00038985,14]
[341376243,1730856646653,-500.0,0.00038985,14]
[341376244,1730856646663,-578.63,0.00038985,14]
[341376245,1730856646672,-578.63,0.00038985,14]
[341376246,1730856646682,-500.0,0.00038985,14]
[341376247,1730856646802,-578.63,0.00038985,14]
[341376248,1730856646813,-578.63,0.00038985,14]
[341376249,1730856646822,-1032.79,0.00038985,14]
[341376250,1730856646832,-151.0,0.00038985,14]
[341376251,1730856646841,-1032.79,0.00038985,14]
[341376252,1730856646850,-1032.79,0.00038985,14]
[341376254,1730856646860,-1032.79,0.00038985,14]
[341376255,1730856646870,-635.93,0.00038985,14]
[341376256,1730856646879,-635.93,0.00038985,14]
[341376257,1730856646889,-635.93,0.00038985,14]
[341376258,1730856646898,-635.93,0.00038985,14]
[341376259,1730856646908,-635.93,0.00038985,14]
[341376260,1730856646917,-635.93,0.00038985,14]
[341376261,1730856646927,-500.0,0.00038985,14]
[341376262,1730856646937,-500.0,0.00038985,14]
[341376263,1730856646947,-151.0,0.00038985,14]
[341376264,1730856646957,-12070.19,0.00038985,14]
[341376265,1730856646967,-500.0,0.00038985,14]
[341376266,1730856646977,-12070.19,0.00038985,14]
[341376267,1730856646988,-500.0,0.00038985,14]
[341376268,1730856646998,-500.0,0.00038985,14]
[341376269,1730856647008,-12070.19,0.00038985,14]
[341376270,1730856647017,-500.0,0.00038985,14]
[341376271,1730856647027,-12070.19,0.00038985,14]
[341376272,1730856647039,-151.0,0.00038985,14]
[341376273,1730856647049,-529.84,0.00038985,14]
[341376274,1730856647059,-529.84,0.00038985,14]
[341376275,1730856647069,-529.84,0.00038985,14]
[341376276,1730856647079,-529.84,0.00038985,14]
[341376277,1730856647089,-529.84,0.00038985,14]
[341376278,1730856647099,-529.84,0.00038985,14]
[341376279,1730856647108,-4428.54,0.00038985,14]
[341376280,1730856647117,-4428.54,0.00038985,14]
[341376281,1730856647127,-4428.54,0.00038985,14]
[341376282,1730856647137,-4428.54,0.00038985,14]
[341376283,1730856647146,-4428.54,0.00038985,14]
[341376284,1730856647156,-151.0,0.00038985,14]
[341376285,1730856647165,-4428.54,0.00038985,14]
[341376286,1730856647174,-1276.87,0.00038985,14]
[341376287,1730856647183,-1276.87,0.00038985,14]
[341376288,1730856647193,-1276.87,0.00038985,14]
[341376289,1730856647202,-1276.87,0.00038985,14]
[341376290,1730856647211,-1545.47,0.00038985,14]
[341376291,1730856647220,-1545.47,0.00038985,14]
[341376292,1730856647229,-1545.47,0.00038985,14]
[341376293,1730856647239,-1545.47,0.00038985,14]
[341376294,1730856647248,-151.0,0.00038985,14]
[341376295,1730856647257,-1545.47,0.00038985,14]
[341376296,1730856647266,-1545.47,0.00038985,14]
[341376297,1730856647276,-20991.71,0.00038985,14]
[341376298,1730856647288,-20991.71,0.00038985,14]
[341376299,1730856647297,-20991.71,0.00038985,14]
[341376300,1730856647307,-20991.71,0.00038985,14]
[341376301,1730856647316,-915.81,0.00038985,14]
[341376302,1730856647326,-915.81,0.00038985,14]
[341376303,1730856647335,-915.81,0.00038985,14]
[341376304,1730856647346,-915.81,0.00038985,14]
[341376305,1730856647356,-915.81,0.00038985,14]
[341376306,1730856647366,-915.81,0.00038985,14]
[341376307,1730856647376,-151.0,0.00038985,14]
[341376308,1730856647386,-2230.84,0.00038985,14]
[341376309,1730856647395,-2230.84,0.00038985,14]
[341376310,1730856647405,-2230.84,0.00038985,14]
[341376311,1730856647414,-2230.84,0.00038985,14]
[341376312,1730856647423,-2230.84,0.00038985,14]
[341376313,1730856647433,-2230.84,0.00038985,14]
[341376314,1730856647442,-500.0,0.00038985,14]
[341376315,1730856647451,-500.0,0.00038985,14]
[341376316,1730856647460,-387.6966019,0.00038985,14]
[341376317,1730856647470,-5790.82,0.00038985,14]
[341376318,1730856647479,-5790.82,0.00038985,14]
[341376319,1730856647488,-5790.82,0.00038985,14]
[341376320,1730856647498,-5790.82,0.00038985,14]
[341376321,1730856647508,-500.0,0.00038985,14]
[341376322,1730856647517,-5790.82,0.00038985,14]
[341376323,1730856647527,-5790.82,0.00038985,14]
[341376324,1730856647540,-2352.22,0.00038985,14]
[341376325,1730856647549,-500.0,0.00038985,14]
[341376326,1730856647559,-2352.22,0.00038985,14]
[341376327,1730856647568,-500.0,0.00038985,14]
[341376328,1730856647579,-2352.22,0.00038985,14]
[341376329,1730856647589,-500.0,0.00038985,14]
[341376330,1730856647598,-2352.22,0.00038985,14]
[341376331,1730856647608,-1475.85,0.00038985,14]
[341376332,1730856647617,-1475.85,0.00038985,14]
[341376333,1730856647627,-1475.85,0.00038985,14]
[341376334,1730856647636,-1475.85,0.00038985,14]
[341376335,1730856647647,-1475.85,0.00038985,14]
[341376336,1730856647656,-1475.85,0.00038985,14]
[341376337,1730856647666,-151.0,0.00038985,14]
[341376338,1730856647676,-151.0,0.00038985,14]
[341376339,1730856647685,-151.0,0.00038985,14]
[341376340,1730856647695,-2840.55,0.00038985,14]
[341376341,1730856647706,-2840.55,0.00038985,14]
[341376342,1730856647715,-2840.55,0.00038985,14]
[341376343,1730856647726,-2840.55,0.00038985,14]
[341376344,1730856647737,-2840.55,0.00038985,14]
[341376345,1730856647746,-2840.55,0.00038985,14]
[341376346,1730856647756,-616.022593,0.00038985,14]
[341376347,1730856647766,-616.022593,0.00038985,14]
[341376348,1730856647776,-616.022593,0.00038985,14]
[341376349,1730856647788,-825.49,0.00038985,14]
[341376350,1730856647798,-825.49,0.00038985,14]
[341376351,1730856647808,-151.0,0.00038985,14]
[341376352,1730856647818,-825.49,0.00038985,14]
[341376353,1730856647827,-244.06704203,0.00038985,14]
[341376354,1730856647837,-825.49,0.00038985,14]
[341376355,1730856647847,-616.022593,0.00038985,14]
[341376356,1730856647857,-616.022593,0.00038985,14]
[341376357,1730856647867,-616.022593,0.00038985,14]
[341376358,1730856647876,-4139.12,0.00038985,14]
[341376359,1730856647886,-4139.12,0.00038985,14]
[341376360,1730856647895,-4139.12,0.00038985,14]
[341376361,1730856647905,-4139.12,0.00038985,14]
[341376362,1730856647915,-500.0,0.00038985,14]
[341376363,1730856647924,-500.0,0.00038985,14]
[341376364,1730856647934,-500.0,0.00038985,14]
[341376365,1730856647943,-151.0,0.00038985,14]
[341376366,1730856647953,-500.0,0.00038985,14]
[341376367,1730856647963,-151.0,0.00038985,14]
[341376368,1730856647972,-151.0,0.00038985,14]
[341376369,1730856647982,-315.49746391,0.00038985,14]
[341376370,1730856647991,-500.0,0.00038985,14]
[341376371,1730856648000,-500.0,0.00038985,14]
[341376372,1730856648011,-500.0,0.00038985,14]
[341376373,1730856648021,-500.0,0.00038985,14]
[341376374,1730856648030,-500.0,0.00038985,14]
[341376375,1730856648043,-500.0,0.00038985,14]
[341376376,1730856648053,-500.0,0.00038985,14]
[341376377,1730856648063,-500.0,0.00038985,14]
[341376378,1730856648072,-500.0,0.00038985,14]
[341376379,1730856648082,-363.09455903,0.00038985,14]
[341376380,1730856648640,-136.90544097,0.00038985,14]
[341376381,1730856648655,-500.0,0.00038985,14]
[341376382,1730856648674,-500.0,0.00038985,14]
[341376383,1730856648694,-500.0,0.00038985,14]
[341376384,1730856648709,-500.0,0.00038985,14]
[341376385,1730856648727,-500.0,0.00038985,14]
[341376386,1730856648744,-500.0,0.00038985,14]
[341376387,1730856648764,-711.8,0.00038985,14]
[341376388,1730856648783,-711.8,0.00038985,14]
[341376389,1730856648806,-711.8,0.00038985,14]
[341376390,1730856648824,-711.8,0.00038985,14]
[341376391,1730856648840,-711.8,0.00038985,14]
[341376392,1730856648856,-711.8,0.00038985,14]
[341376393,1730856648873,-151.0,0.00038985,14]
[341376394,1730856648891,-4372.31,0.00038985,14]
[341376395,1730856648908,-151.0,0.00038985,14]
[341376396,1730856648924,-151.0,0.00038985,14]
[341376397,1730856648940,-163.67787703,0.00038985,14]
[341376398,1730856649357,-506.14461286,0.00038356,14]
[341376399,1730856649372,-202.02538714,0.00038356,14]
[341376407,1730856862155,155.54,0.00015342,2]
[341376408,1730857081563,200.0,0.000342,120]
[341376410,1730857263283,800.0,0.00026986,120]
[341376413,1730857386075,350.0,0.00026986,120]
[341376414,1730857386098,450.0,0.00026986,120]
[341376490,1730857832796,-250.0,0.00021,2]
[341376491,1730857832806,-300.0,0.00023,2]
[341376492,1730857832815,-165.79877464,0.000249,2]
[341376493,1730857832824,-350.0,0.00025,2]
[341376494,1730857832833,-454.0,0.000292,2]
[341376495,1730857832843,-153.65375,0.0003,2]
[341376496,1730857832853,-153.65375,0.0003,2]
[341376497,1730857832862,-150.0,0.00034548,10]
[341376498,1730857832872,-507.81,0.00034928,2]
[341376499,1730857832881,-178.48,0.00035575,2]
[341376500,1730857832893,-200.0,0.00036,120]
[341376501,1730857832902,-164.66,0.00036408,2]
[341376502,1730857832911,-250.0,0.00036412,2]
[341376503,1730857832921,-250.0,0.00036423,120]
[341376504,1730857832930,-1945.29,0.00036438,2]
[341376505,1730857832939,-794.95,0.00036446,2]
[341376506,1730857832949,-377.86,0.00036588,2]
[341376507,1730857832958,-67.93996936,0.00036695,120]
[341376508,1730857833152,-116.23003064,0.00036695,120]
[341376509,1730857833162,-152.64,0.00036878,2]
[341376510,1730857833172,-15.53834579,0.00036908,2]
[341376511,1730857833185,-292.13165421,0.00036908,2]
[341376512,1730857833195,-200.0,0.00036939,7]
[341376513,1730857833205,-507.81,0.00037192,2]
[341376514,1730857833214,-622.14,0.00037397,2]
[341376515,1730857833224,-241.0,0.00037972,2]
[341376516,1730857833234,-173.0,0.0003799,2]
[341376517,1730857833244,-900.0,0.00038,39]
[341376518,1730857833253,-224.8906282,0.00038,120]
[341376519,1730857833263,-400.0,0.00038,120]
[341376520,1730857833272,-500.0,0.00038,14]
[341376521,1730857833281,-602.8606771,0.00038256,15]
[341376522,1730857833291,-180.73426557,0.00038256,2]
[341376523,1730857833426,-415.62735329,0.00038256,2]
[341376524,1730857833437,-867.68,0.00038346,10]
[341376525,1730857833446,-4343.40915935,0.0003835,14]
[341376547,1730857838546,-46319.87755265,0.0003835,14]
[341376548,1730857838562,-154.196,0.00038355,51]
[341376549,1730857838576,-281.40993653,0.00038355,2]
[341376550,1730857838591,-500.0,0.00038355,15]
[341376551,1730857838607,-500.0,0.00038355,15]
[341376552,1730857838621,-288.66447971,0.00038355,15]
[341376553,1730857838637,-500.0,0.00038355,15]
[341376554,1730857838797,-500.0,0.00038355,15]
[341376555,1730857838820,-500.0,0.00038356,14]
[341376556,1730857838830,-200.0,0.00038356,7]
[341376557,1730857838839,-659.74,0.00038356,14]
[341376558,1730857838849,-529.89468879,0.00038356,14]
[341376559,1730857838859,-500.0,0.00038356,14]
[341376560,1730857838868,-500.0,0.00038356,14]
[341376561,1730857838877,-505.14265171,0.00038356,14]
[341376562,1730857838886,-500.0,0.00038356,14]
[341376563,1730857838896,-500.0,0.00038356,14]
[341376564,1730857838905,-500.0,0.00038356,14]
[341376565,1730857838915,-500.0,0.00038356,14]
[341376566,1730857838923,-500.0,0.00038356,14]
[341376567,1730857838932,-500.0,0.00038356,14]
[341376568,1730857838941,-500.0,0.00038356,14]
[341376569,1730857838950,-525.8104113,0.00038356,14]
[341376570,1730857838959,-500.0,0.00038356,14]
[341376571,1730857838968,-500.0,0.00038356,14]
[341376572,1730857838977,-500.0,0.00038356,14]
[341376573,1730857838986,-501.69697958,0.00038356,14]
[341376574,1730857838995,-500.0,0.00038356,14]
[341376575,1730857839005,-1266.72,0.00038356,14]
[341376576,1730857839014,-500.0,0.00038356,14]
[341376577,1730857839023,-500.0,0.00038356,14]
[341376578,1730857839033,-522.30824204,0.00038356,14]
[341376579,1730857839043,-500.0,0.00038356,14]
[341376580,1730857839053,-500.0,0.00038356,14]
[341376581,1730857839063,-500.0,0.00038356,14]
[341376582,1730857839072,-508.48069413,0.00038356,14]
[341376583,1730857839081,-500.0,0.00038356,14]
[341376584,1730857839091,-500.0,0.00038356,14]
[341376585,1730857839100,-500.0,0.00038356,14]
[341376586,1730857839110,-506.0634541,0.00038356,14]
[341376587,1730857839120,-500.0,0.00038356,14]
[341376589,1730857839129,-500.0,0.00038356,14]
[341376591,1730857839138,-523.80019347,0.00038356,14]
[341376593,1730857839149,-500.0,0.00038356,14]
[341376596,1730857839158,-500.0,0.00038356,14]
[341376598,1730857839167,-500.0,0.00038356,14]
[341376600,1730857839177,-513.92942779,0.00038356,14]
[341376602,1730857839186,-500.0,0.00038356,14]
[341376604,1730857839195,-500.0,0.00038356,14]